[Event "1000 GM Labor Day Super Swiss 2024"]
[Site "San Jose"]
[Date "2024.09.03"]
[Round "8.5"]
[White "Hevia Alejano, Carlos Antonio"]
[Black "Schitco, Ivan"]
[Result "1-0"]
[Annotator "TA"]
[ECO "B06"]
[WhiteElo "2414"]
[BlackElo "2518"]
[PlyCount "87"]
[EventDate "2024.08.30"]
[EventType "swiss"]
[EventCountry "USA"]
[SourceTitle "playchess.com"]
[Source "ChessBase"]
[SourceQuality "1"]
[TimeControl "5400+30"]

{[%evp 11,87,61,95,47,66,44,71,52,83,37,65,24,30,29,39,38,39,27,31,-12,4,6,8,4,11,21,12,7,10,12,5,3,10,12,8,6,1,6,8,14,6,8,6,7,8,0,0,0,0,-2,-4,-5,-8,-2,0,0,15,17,19,13,11,15,50,19,427,416,366,32,234,216,495,362,570,516,556,546,501,500]} 1. e4 {[%emt 0:04:34]} g6 {[%emt 0:01:00]} 2. d4 {[%emt 0:02:27]} Bg7 {[%emt 0:00:11]} 3. Nf3 {[%emt 0:01:48]} d6 {[%emt 0:00:14]} 4. Nc3 {[%emt 0:03:29]} c6 {[%emt 0:01:19]} 5. Be2 {[%emt 0:04:20]} b5 {[%emt 0:01:42]} 6. O-O {[%emt 0:01:19]} Nd7 {[%emt 0:09:27]} 7. Re1 {[%emt 0:11:43]} (7. e5 $16) 7... Qc7 $14 {[%emt 0:17:27]} 8. Bg5 {[%emt 0:05:10]} Rb8 {[%emt 0:12:38]} 9. a3 {[%emt 1:00:10] White is better.} a6 {[%emt 0:09:12]} 10. Qd2 {[%emt 0:00:00]} (10. e5 $16) 10... h6 {[%emt 0:01:37]} 11. Bh4 {[%emt 0:00:00][%cal Oe4e5] White is more active.} e5 {[%emt 0:06:01]} 12. dxe5 {[%emt 0:00:00]} dxe5 {[%emt 0:00:48]} 13. Rad1 {[%emt 0:00:00]} Ngf6 {[%emt 0:01:59]} 14. Qd6 {[%emt 0:00:00]} Rb7 {[%emt 0:02:26]} 15. a4 {[%emt 0:00:00]} (15. Qxc7 {simplifies} Rxc7 16. Nd2 Nc5 17. b4) 15... g5 {[%emt 0:04:54]} (15... Qxd6 {simplifies} 16. Rxd6 Rc7 17. Rdd1 O-O) 16. Bg3 {[%emt 0:00:00]} Nh5 $1 {[%emt 0:00:59]} 17. axb5 {[%emt 0:00:00]} axb5 {[%emt 0:01:17]} 18. Qxc7 {[%emt 0:00:00]} Rxc7 {[%emt 0:00:02] [#]} 19. Bxe5 $1 {[%emt 0:00:00]} Nxe5 {[%emt 0:01:35]} 20. Nxe5 {[%emt 0:00:00]} Bxe5 {[%emt 0:01:11]} 21. Bxh5 {[%emt 0:00:00]} g4 {[%emt 0:02:14]} 22. g3 {[%emt 0:00:00]} Rg8 {[%emt 0:02:59][%cal Bh8g8,Bg8g5,Bg5c5][%mdl 32] [#] Strongly threatening ...Bxc3.} 23. h3 $1 {[%emt 0:00:00]} gxh3 {[%emt 0:00:11]} 24. Kh2 {[%emt 0:00:00]} Rg5 {[%emt 0:01:50][%cal Oe5c3] And now ...Bxc3! would win.} 25. Be2 {[%emt 0:00:00] f4 would now be deadly.} Bxc3 {[%emt 0:00:24]} 26. bxc3 {[%emt 0:00:00]} Rc5 $132 {[%emt 0:00:07][%mdl 2048] [#] Black is fighting back} 27. c4 $1 {[%emt 0:00:00]} b4 {[%emt 0:02:23]} (27... Be6 28. cxb5) 28. Rb1 {[%emt 0:00:00]} Rb7 {[%emt 0:00:05]} 29. Rb3 {[%emt 0:05:46]} Ra5 {[%emt 0:03:49] Inhibits Ra1.} 30. g4 {[%emt 0:00:04]} Ra2 {[%emt 0:00:41]} 31. Rc1 {[%emt 0:00:33]} c5 {[%emt 0:00:27]} 32. Kxh3 {[%emt 0:00:20]} Bd7 {[%emt 0:01:58]} 33. Re3 $1 {[%emt 0:05:17]} Ba4 {[%emt 0:03:35]} 34. Bd3 {[%emt 0:00:00]} Rd7 {[%emt 0:00:12]} 35. Kg3 {[%emt 0:00:00]} Ra3 {[%emt 0:01:55]} 36. e5 {[%emt 0:00:00]} Ke7 {[%emt 0:00:36]} 37. Rh1 {[%emt 0:00:00]} Rdxd3 $4 {[%emt 0:04:39][%mdl 8192]} 38. cxd3 $11 {[%emt 0:00:49][%mdl 4096] Endgame. KRR-KRB} Bc2 {[%emt 0:00:06]} 39. Rc1 $2 {[%emt 0:01:08]} (39. Rxh6 $18 {Threatens to win with Rd6.} Bxd3 40. Rc6 Bxc4 41. Rxa3 (41. Rxc5 Rxe3+ 42. fxe3 Be6 $18) 41... bxa3 42. Rxc5) 39... Rc3 $2 {[%emt 0:03:45] [#]} (39... b3 $14 40. Ree1 Bxd3) 40. Ra1 $1 $18 {[%emt 0:00:48]} Bxd3 $2 {[%emt 0:01:55]} (40... Rxd3 41. Rxd3 Bxd3) 41. Ra7+ {[%emt 0:00:11]} Kd8 {[%emt 0:00:35]} (41... Ke8 {is a better defense.} 42. Ra1 Bxc4) 42. Ra5 {[%emt 0:00:28] White is clearly winning.} Be4 {[%emt 0:00:33]} 43. Kf4 {[%emt 0:00:55] aiming for Rxc3.} Bd3 {[%emt 0:00:31]} 44. Rxc5 {[%emt 0:00:06] Weighted Error Value: White=0.23 (precise) /Black=0.47.  Loses game:     	---       	Black=2      Missed win:     	White=1     	---        Mistake:       	White=1     	Black=2      Inaccurate:     	White=2     	Black=4      OK:         	White=15    	Black=16     Best:        	White=2     	---        Strong:       	White=1     	Black=1} 1-0

[Event "1000 GM Labor Day Super Swiss 2024"]
[Site "San Jose"]
[Date "2024.09.03"]
[Round "8.6"]
[White "Garcia Guerrero, Isaac Antonio"]
[Black "Sheng, Joshua"]
[Result "0-1"]
[Annotator "TA"]
[ECO "A45"]
[WhiteElo "2291"]
[BlackElo "2474"]
[PlyCount "66"]
[EventDate "2024.08.30"]
[EventType "swiss"]
[EventCountry "USA"]
[SourceTitle "playchess.com"]
[Source "ChessBase"]
[SourceQuality "1"]
[TimeControl "5400+30"]

{[%evp 9,66,-29,-32,-22,-17,-37,-40,-41,-37,-21,-8,-15,-18,-6,-20,-42,-50,-79,-81,-83,-71,-121,-127,-209,-214,-195,-108,-110,-120,-112,-118,-108,-118,-95,-93,-89,-123,-320,-328,-330,-327,-332,-339,-383,-387,-540,-509,-529,-512,-644,-665,-650,-653,-800,-782,-787,-789,-913,-899]} 1. d4 {[%emt 0:00:01]} Nf6 {[%emt 0:04:55]} 2. Bg5 {[%emt 0:00:27]} c5 {[%emt 0:02:16]} 3. d5 {[%emt 0:00:22]} Ne4 {[%emt 0:02:24]} 4. Bf4 {[%emt 0:00:07]} Qb6 {[%emt 0:01:43]} 5. Nd2 {[%emt 0:00:09] [#]} Qxb2 $1 {[%emt 0:00:15]} 6. Nxe4 {[%emt 0:00:13][%cal Of4d2] Strongly threatening Bd2!} Qb4+ {[%emt 0:00:02]} 7. c3 {[%emt 0:00:12]} Qxe4 {[%emt 0:00:05]} 8. e3 {[%emt 0:00:05] [#] Black is slightly better.} g5 $1 {[%emt 0:00:10]} 9. Bxg5 {[%emt 0:00:32]} Qe5 {[%emt 0:00:38][%csl LRc3,LRg5]} 10. Nf3 {[%emt 0:00:07]} Qxc3+ {[%emt 0:00:05]} 11. Nd2 {[%emt 0:00:05]} d6 {[%emt 0:03:27]} 12. Rb1 {[%emt 0:07:16]} a6 {[%emt 0:04:48]} 13. a4 {[%emt 0:03:27]} Nd7 {[%emt 0:00:35]} 14. Be2 {[%emt 0:12:58]} Rg8 {[%emt 0:28:18]} 15. h4 {[%emt 0:16:19] [#]} (15. Bf4 $142) 15... h6 $1 $17 {[%emt 0:01:51]} 16. Rb3 {[%emt 0:00:39]} (16. Bf4 $17) 16... Qa5 $19 {[%emt 0:03:25]} 17. Bf4 {[%emt 0:00:28]} Rxg2 {[%emt 0:00:31]} (17... Qxa4 $19 {[%cal Ob7b5] ...b5! would now be deadly.} 18. O-O b5) 18. Kf1 $17 {[%emt 0:01:02]} Rg8 {[%emt 0:00:26]} 19. Nc4 {[%emt 0:00:42]} Qxa4 {[%emt 0:02:52] And now ...b5 would win.} 20. Qb1 {[%emt 0:01:45] [#]} Nf6 $1 {[%emt 0:06:01]} (20... b5 $6 21. Ra3 Qb4 22. Rb3 $11) 21. e4 {[%emt 0:21:29] Prevents Bf5.} Rb8 {[%emt 0:03:24]} 22. Ra3 {[%emt 0:26:03]} Qd7 {[%emt 0:00:40][%cal Ob7b6] White must now prevent ...b6!} 23. Bf3 $2 {[%emt 0:00:06] White does not recover from this.} (23. Nb6 $17 Qc7 24. Re3) 23... b5 $19 {[%emt 0:12:50]} 24. e5 {[%emt 0:00:45]} Qf5 {[%emt 0:00:50]} (24... bxc4 25. Qxb8 Qd8 26. exd6 (26. exf6 $2 {too greedy.} Bh3+ 27. Rxh3 Qxb8 $19) 26... exd6 (26... Bh3+ $2 27. Rxh3 Qxb8 28. d7+ Nxd7 29. Bxb8 $18) 27. Re3+ Kd7 28. Rg1 Rxg1+ 29. Kxg1 $18) 25. Qxf5 {[%emt 0:01:07]} Bxf5 {[%emt 0:00:03]} 26. exf6 {[%emt 0:00:19]} bxc4 {[%emt 0:00:18]} 27. Rxa6 {[%emt 0:00:28]} Bd3+ {[%emt 0:01:44] Black is clearly winning.} (27... exf6 $2 28. Ke2 $19) 28. Ke1 {[%emt 0:00:07]} Rg6 {[%emt 0:01:25]} ({Less strong is} 28... exf6 29. Kd2 $19) 29. Kd2 {[%emt 0:01:36]} Rxf6 {[%emt 0:00:27]} 30. Ke3 {[%emt 0:00:11]} e5 {[%emt 0:02:07]} 31. dxe6 {[%emt 0:01:26]} Rxe6+ {[%emt 0:00:24]} 32. Kd2 {[%emt 0:00:26]} Rb2+ {[%emt 0:03:02]} 33. Kc1 {[%emt 0:00:50]} c3 {[%emt 0:00:40] Weighted Error Value: White=0.42/Black=0.04 (flawless) .  Loses game:     	White=1     	---        Mistake:       	White=2     	Black=1      Inaccurate:     	White=2     	---        OK:         	White=12    	Black=15     Best:        	White=3     	Black=3      Strong:       	---       	Black=2} 0-1

[Event "1000 GM Labor Day Super Swiss 2024"]
[Site "San Jose"]
[Date "2024.09.03"]
[Round "8.7"]
[White "Yoo, Christopher Woojin"]
[Black "Atwell, Rose"]
[Result "1-0"]
[Annotator "TA"]
[ECO "A07"]
[WhiteElo "2616"]
[BlackElo "2208"]
[PlyCount "87"]
[EventDate "2024.08.30"]
[EventType "swiss"]
[EventCountry "USA"]
[SourceTitle "playchess.com"]
[Source "ChessBase"]
[SourceQuality "1"]
[TimeControl "5400+30"]

{[%evp 14,87,7,6,27,20,27,17,42,16,43,56,78,55,89,100,88,87,91,97,114,98,224,245,244,249,230,223,228,179,168,164,341,330,308,275,306,302,275,259,388,397,400,401,387,406,364,251,283,291,294,245,232,229,220,237,244,233,314,313,464,455,943,943,2662,2493,29984,29985,29988,29989,29990,29991,29992,29993,29993,29992]} 1. g3 {[%emt 0:00:07]} d5 {[%emt 0:00:07]} 2. Nf3 {[%emt 0:00:04]} Nf6 {[%emt 0:00:08]} 3. Bg2 {[%emt 0:00:05]} c6 {[%emt 0:00:04]} 4. O-O {[%emt 0:00:06]} Bg4 {[%emt 0:00:14]} 5. h3 {[%emt 0:01:16]} Bh5 {[%emt 0:00:41]} 6. d3 {[%emt 0:01:41]} Nbd7 {[%emt 0:03:39]} 7. Nbd2 {[%emt 0:01:17]} e5 {[%emt 0:03:51]} 8. e4 {[%emt 0:01:59]} dxe4 {[%emt 0:03:13]} 9. dxe4 {[%emt 0:01:18]} Qc7 {[%emt 0:04:36]} 10. Qe1 {[%emt 0:03:13]} b5 {[%emt 0:06:19] The position is equal.} 11. Nb3 {[%emt 0:08:48]} Be7 {[%emt 0:08:54]} 12. Nh4 {[%emt 0:02:30]} O-O {[%emt 0:02:14]} 13. Nf5 {[%emt 0:03:25]} Rfe8 {[%emt 0:01:43]} 14. Nxe7+ {[%emt 0:02:34]} Rxe7 {[%emt 0:00:03]} 15. a4 {[%emt 0:04:11][%cal Ba2a4,Ba4a5][%mdl 32]} Nb6 {[%emt 0:16:40][%cal Bd7b6,Bb6a4,Ba4c3][%mdl 32]} 16. Nc5 {[%emt 0:06:35]} Nfd7 {[%emt 0:04:21]} 17. Na6 {[%emt 0:06:37]} Qd6 {[%emt 0:03:56]} (17... Qb7 $16) 18. g4 $1 $18 {[%emt 0:05:21]} Bg6 {[%emt 0:00:25] [#]} 19. Bg5 $1 {[%emt 0:02:41] Rd1 would now be deadly.} Nf6 {[%emt 0:04:32] [#]} 20. a5 {[%emt 0:01:37]} (20. Rd1 Qe6 21. a5 Na4) 20... Na4 {[%emt 0:07:45]} 21. Rd1 {[%emt 0:01:52] Prevents c5} Qe6 {[%emt 0:00:18]} 22. Qb4 $36 {[%emt 0:02:30][%mdl 2048] And now f4 would win. White has strong initiative.} Rb7 $2 {[%emt 0:09:05]} (22... Rd7 23. Bxf6 gxf6) 23. Rd6 {[%emt 0:03:21]} c5 {[%emt 0:03:34]} 24. Qd2 {[%emt 0:02:42]} (24. Nxc5 $2 Qxd6 25. Be3 Rc8 $19 (25... Rc7 $2 26. g5 $19)) 24... Qe7 {[%emt 0:01:17]} 25. b3 {[%emt 0:04:08]} Nc3 {[%emt 0:01:05]} 26. Re1 {[%emt 0:01:22] Dodges Ne2+. Threatens to win with h4.} (26. Nxc5 Rc7 $18) 26... h6 {[%emt 0:03:44]} (26... Rc8 $142 27. f4 h6) 27. Bxf6 {[%emt 0:02:33]} ({Don't take} 27. Nxc5 hxg5 28. Nxb7 (28. Qxc3 Rc7 $11) 28... Ncxe4 29. Rd8+ Kh7 30. Rxe4 (30. Bxe4 Nxe4 31. Rxe4 Rxd8 $18) 30... Rxd8 31. Qxd8 Qxd8 32. Nxd8 Nxe4) 27... gxf6 {[%emt 0:00:09]} 28. Nxc5 {[%emt 0:00:39]} Rc7 {[%emt 0:00:34]} 29. Na6 {[%emt 0:00:58][%cal Bc5a6,Ba6b4,Bb4c6][%mdl 32]} ({Not} 29. Nd7 Rac8 30. Nxf6+ Kg7 $18) 29... Rb7 {[%emt 0:02:19]} 30. Nb4 {[%emt 0:02:25][%cal Ob4c6] Hoping for Nc6!} Rc8 {[%emt 0:04:05]} 31. Nc6 {[%emt 0:03:18]} Qe8 {[%emt 0:01:20]} 32. Qxc3 {[%emt 0:02:33]} Rbc7 {[%emt 0:00:05] [#]} 33. Rxf6 {[%emt 0:00:20][%cal Oc3e5]} Rxc6 {[%emt 0:00:34]} 34. Rxc6 {[%emt 0:00:07]} Rxc6 {[%emt 0:00:20]} 35. Qd2 {[%emt 0:00:57]} Qc8 {[%emt 0:01:31]} 36. Qxh6 {[%emt 0:01:57]} Rxc2 {[%emt 0:02:17]} (36... Qd8 {was called for.} 37. Qe3 a6) 37. Rd1 {[%emt 0:01:03]} Rb2 {[%emt 0:01:17]} (37... Qc7 $142 38. h4 Qxa5) 38. h4 {[%emt 0:01:34][%cal Bh3h4,Bh4h5][%mdl 32] aiming for h5.} Re2 {[%emt 0:01:27]} 39. h5 {[%emt 0:01:14]} Bxe4 {[%emt 0:00:12]} 40. Qf6 {[%emt 0:00:32] White mates.} Re1+ {[%emt 0:01:15]} 41. Rxe1 {[%emt 0:00:06][%cal Bd1e1,Be1e4,Be4h4][%mdl 32]} Qxg4 {[%emt 0:00:05]} 42. Rxe4 {[%emt 0:00:09]} Qd1+ {[%emt 0:00:04]} 43. Kh2 {[%emt 0:00:11]} Qxh5+ {[%emt 0:00:07]} 44. Rh4 {[%emt 0:00:07] Black got outplayed after the opening.   Weighted Error Value: White=0.08 (flawless) /Black=0.51.  Mistake:       	---       	Black=5      Inaccurate:     	White=2     	Black=4      OK:         	White=18    	Black=9      Best:        	White=2     	Black=3      Strong:       	White=2     	---} 1-0

[Event "1000 GM Labor Day Super Swiss 2024"]
[Site "San Jose"]
[Date "2024.09.03"]
[Round "8.8"]
[White "Gongora Montes, Benjamin"]
[Black "Koustav Chatterjee"]
[Result "1/2-1/2"]
[Annotator "TA"]
[ECO "D03"]
[WhiteElo "2111"]
[BlackElo "2524"]
[PlyCount "137"]
[EventDate "2024.08.30"]
[EventType "swiss"]
[EventCountry "USA"]
[SourceTitle "playchess.com"]
[Source "ChessBase"]
[SourceQuality "1"]
[TimeControl "5400+30"]

{[%evp 26,137,22,13,20,21,22,11,11,11,14,11,11,11,11,11,23,12,22,0,0,0,5,0,6,0,0,0,16,0,4,8,29,0,9,0,89,116,108,101,206,198,215,193,212,153,147,121,210,198,443,86,96,99,121,127,118,110,145,86,99,43,53,42,47,42,48,42,42,43,43,42,43,42,43,43,43,43,56,27,27,22,34,22,41,30,56,33,36,0,37,30,38,0,30,10,11,0,0,0,0,0,0,0,0,0,0,0,0,0,0,0,0,0]} 1. d4 {[%emt 0:00:03]} Nf6 {[%emt 0:03:30]} 2. Nf3 {[%emt 0:00:11]} d5 {[%emt 0:00:24]} 3. Bg5 {[%emt 0:00:10]} c5 {[%emt 0:01:16]} 4. e3 {[%emt 0:00:16]} Nc6 {[%emt 0:00:05]} 5. Nc3 {[%emt 0:02:52]} Bg4 {[%emt 0:01:30]} 6. Be2 {[%emt 0:01:07] D03: 1 d4 d5 2 Nf3 Nf6 3 Bg5, including Torre Attack with early ...d5.} e6 {[%emt 0:02:49]} 7. O-O {[%emt 0:05:00]} Bxf3 {[%emt 0:01:57]} 8. Bxf3 {[%emt 0:00:12]} cxd4 {[%emt 0:00:04]} 9. exd4 {[%emt 0:00:10]} Be7 {[%emt 0:00:07]} 10. Ne2 {[%emt 0:00:20]} O-O {[%emt 0:00:07]} 11. c3 {[%emt 0:00:27]} Rc8 $146 {[%emt 0:00:43]} ({Predecessor:} 11... Nd7 12. Bxe7 Qxe7 13. Ng3 Qd6 14. Re1 b5 15. Be2 Rab8 16. b4 a5 17. a4 axb4 18. axb5 {1-0 Srihari,L (2414)-Sjugirov,S (2663) Levitov Christmas Online Q2 blitz 2020}) 12. Nc1 {[%emt 0:01:51]} Na5 {[%emt 0:00:29]} 13. Nd3 {[%emt 0:00:23]} Nc4 {[%emt 0:00:05]} 14. Qe2 {[%emt 0:01:57]} h6 {[%emt 0:00:07]} 15. Bf4 {[%emt 0:00:05]} Bd6 {[%emt 0:00:17]} 16. Rad1 {[%emt 0:10:46]} Re8 {[%emt 0:00:37]} 17. g3 {[%emt 0:05:05]} Re7 {[%emt 0:02:11]} 18. Bg2 {[%emt 0:00:14]} Bxf4 {[%emt 0:02:19]} 19. Nxf4 {[%emt 0:00:28]} Qa5 {[%emt 0:00:06]} 20. Nd3 {[%emt 0:00:21]} Rec7 {[%emt 0:01:26]} 21. Bh3 {[%emt 0:00:55]} Ne4 {[%emt 0:03:06]} 22. f3 {[%emt 0:00:36]} Ned6 {[%emt 0:04:17]} 23. Kh1 {[%emt 0:04:02]} a6 {[%emt 0:08:46]} 24. a3 {[%emt 0:00:47]} Qb5 {[%emt 0:00:12]} 25. Rf2 {[%emt 0:01:01]} Re8 {[%emt 0:02:28]} 26. Re1 {[%emt 0:07:41]} Rce7 {[%emt 0:00:45]} 27. Qc2 {[%emt 0:00:25]} Qc6 {[%emt 0:07:04]} 28. Rfe2 {[%emt 0:04:00]} a5 {[%emt 0:00:34]} 29. Bg2 {[%emt 0:03:22]} b5 {[%emt 0:03:17]} 30. Qc1 {[%emt 0:01:19]} Nb7 {[%emt 0:02:08]} (30... Rc7 $11) 31. g4 $1 $16 {[%emt 0:03:36]} Qd6 {[%emt 0:00:59]} 32. g5 {[%emt 0:02:26]} hxg5 {[%emt 0:00:09]} (32... Kh7 $16) 33. Qxg5 $18 {[%emt 0:00:08]} Qd8 {[%emt 0:00:28]} 34. Nf4 {[%emt 0:02:15]} Rd7 {[%emt 0:01:14]} 35. Qg4 {[%emt 0:01:42]} Qf6 {[%emt 0:03:05]} 36. Bh3 {[%emt 0:01:43]} Rde7 {[%emt 0:04:35]} (36... Kf8 $16 {was worth a try.}) 37. Nh5 {[%emt 0:05:03]} Qh6 $2 {[%emt 0:00:07] [#]} (37... Qg6 {keeps fighting.}) 38. Rg1 $2 {[%emt 0:00:10]} (38. Nxg7 $1 $18 {is the precise move to win.} Kf8 (38... Qxg7 $2 {is the wrong capture.} 39. Qh4 $18) 39. Rg1 (39. Nxe8 Rxe8 40. Qg3 a4 $18)) 38... g6 $16 {[%emt 0:00:09]} 39. Nf6+ {[%emt 0:00:38]} Kg7 {[%emt 0:00:06]} 40. Nxe8+ {[%emt 0:00:18]} Rxe8 {[%emt 0:00:05]} 41. Qg3 {[%emt 0:01:43]} a4 {[%emt 0:01:39] [#]} 42. Bf1 {[%emt 0:02:03]} (42. Bf5 $142 $1 {[%cal Rf5g6]}) 42... Nbd6 $16 {[%emt 0:00:37]} 43. Qf2 {[%emt 0:03:50]} (43. Qg5 $16) 43... Rh8 {[%emt 0:04:44]} 44. Re1 {[%emt 0:00:39]} Nd2 {[%emt 0:02:17]} 45. Rg2 {[%emt 0:00:15]} Nxf1 {[%emt 0:00:23]} 46. Rxf1 {[%emt 0:00:22]} Nc4 {[%emt 0:00:54]} 47. Re1 {[%emt 0:00:45]} Qf4 {[%emt 0:00:25]} 48. Rg4 {[%emt 0:01:02]} Qf6 {[%emt 0:01:00]} 49. Kg1 {[%emt 0:00:24]} Rh5 {[%emt 0:00:16]} 50. Re2 {[%emt 0:02:30]} Qf5 {[%emt 0:00:17]} 51. Kg2 {[%emt 0:02:18]} Qd3 {[%emt 0:00:20]} 52. Rg3 {[%emt 0:03:17]} Qf5 {[%emt 0:04:58]} 53. Kh1 {[%emt 0:03:21]} Qf6 {[%emt 0:02:03]} 54. Re1 {[%emt 0:02:17]} Nd6 {[%emt 0:00:37]} 55. Qe2 {[%emt 0:00:52]} (55. Rg4 {keeps more tension.} Nc4 56. Kg2 Qf5 57. Kg3) 55... Kg8 {[%emt 0:00:36]} 56. Rg2 {[%emt 0:01:01]} Nc4 {[%emt 0:01:02]} 57. Reg1 {[%emt 0:00:18]} Qf5 {[%emt 0:00:43]} 58. Rg4 {[%emt 0:00:30]} Rh3 {[%emt 0:01:02]} 59. Rf1 {[%emt 0:01:08]} Qh5 {[%emt 0:00:29]} 60. Rg2 {[%emt 0:03:08]} Qh6 {[%emt 0:00:20]} 61. Rxg6+ {[%emt 0:07:14]} fxg6 {[%emt 0:02:47]} (61... Qxg6 $2 {loses.} 62. Rg1 $18) 62. Qxe6+ {[%emt 0:00:08]} Kh7 {[%emt 0:01:14]} 63. Qd7+ {[%emt 0:00:09]} Kh8 {[%emt 0:00:23]} 64. Qc8+ {[%emt 0:00:11]} Kg7 {[%emt 0:02:51]} (64... Kh7 $5 65. Qd7+ $8 Kh8 66. Qc8+ Kh7 67. Qd7+ $11) 65. Qc7+ {[%emt 0:03:43]} Kf6 {[%emt 0:00:14]} 66. Qd8+ {[%emt 0:04:55]} Kg7 {[%emt 0:00:23]} 67. Qc7+ {[%emt 0:01:01]} Kf6 {[%emt 0:00:06]} 68. Qd8+ {[%emt 0:00:05]} Kg7 {[%emt 0:00:24]} 69. Qc7+ {[%emt 0:00:36]} 1/2-1/2

[Event "1000 GM Labor Day Super Swiss 2024"]
[Site "San Jose"]
[Date "2024.09.03"]
[Round "8.9"]
[White "Harsha Bharathakoti"]
[Black "Chinni, Rishabh"]
[Result "1-0"]
[Annotator "TA"]
[ECO "A14"]
[WhiteElo "2550"]
[BlackElo "2220"]
[PlyCount "57"]
[EventDate "2024.08.30"]
[EventType "swiss"]
[EventCountry "USA"]
[SourceTitle "playchess.com"]
[Source "ChessBase"]
[SourceQuality "1"]
[TimeControl "5400+30"]

{[%evp 20,56,19,0,83,90,104,100,118,102,104,115,118,103,130,128,125,117,138,103,130,120,118,131,162,162,262,256,250,257,264,243,375,366,1196,1086,29987,29988,29999]} 1. Nf3 {[%emt 0:06:23]} Nf6 {[%emt 0:00:02]} 2. c4 {[%emt 0:00:49]} e6 {[%emt 0:01:01]} 3. g3 {[%emt 0:00:17]} d5 {[%emt 0:00:23]} 4. Bg2 {[%emt 0:00:04]} c5 {[%emt 0:00:28]} 5. O-O {[%emt 0:01:30]} Be7 {[%emt 0:00:11]} 6. b3 {[%emt 0:07:57]} Nc6 {[%emt 0:03:45]} 7. e3 {[%emt 0:00:39]} O-O {[%emt 0:06:42]} 8. Bb2 {[%emt 0:08:03]} b6 {[%emt 0:04:48]} 9. Qe2 {[%emt 0:00:21]} Bb7 {[%emt 0:02:21]} 10. Rd1 {[%emt 0:11:00]} Qc7 {[%emt 0:08:08]} 11. Nc3 {[%emt 0:01:20]} a6 {[%emt 0:00:43]} (11... dxc4 $11 12. Nb5 Qc8) 12. cxd5 $16 {[%emt 0:01:37]} exd5 {[%emt 0:02:01]} 13. d4 {[%emt 0:01:06]} Rfd8 {[%emt 0:03:33] White is better.} 14. Rac1 {[%emt 0:01:03]} cxd4 {[%emt 0:14:20]} 15. Nxd4 {[%emt 0:00:36]} Nxd4 {[%emt 0:01:16]} 16. Rxd4 {[%emt 0:00:04][%cal Oc3d5] [#] Threatens to win with Nxd5!} Bc5 {[%emt 0:01:04]} 17. Na4 {[%emt 0:13:08] And now b4 would win.} Qe7 {[%emt 0:06:03]} 18. Nxc5 {[%emt 0:19:08]} bxc5 {[%emt 0:00:07]} 19. Rf4 {[%emt 0:00:02] aiming for Bxf6.} Ne4 {[%emt 0:03:45]} 20. Bxe4 {[%emt 0:03:02]} dxe4 {[%emt 0:00:10]} 21. Qg4 {[%emt 0:00:02][%csl Gb2][%cal Rg4g7] White is more active.} f5 {[%emt 0:09:32]} 22. Rxf5 {[%emt 0:01:32]} ({Don't play} 22. Qxf5 Rac8 23. Qg4 Rd7) 22... Rd5 {[%emt 0:07:29]} (22... Bc8 {was necessary.}) 23. Rxd5 $40 {[%emt 0:01:42][%mdl 128] White attacks with force.} Bxd5 {[%emt 0:00:12] [#]} 24. Rxc5 $3 {[%emt 0:00:20][%mdl 512]} Rd8 {[%emt 0:03:16]} (24... Be6 25. Qxe4) 25. Bd4 {[%emt 0:00:59]} g6 {[%emt 0:01:49]} (25... h6 $142 26. Rc8 Rxc8 27. Qxc8+ Qf8 28. Qxa6 Qf7) 26. h4 {[%emt 0:00:46] Hoping for h5.} Qf7 $2 {[%emt 0:01:36]} (26... Rf8 27. Qe2 (27. Rxd5 Qf7 $18) 27... Be6) 27. Qg5 {[%emt 0:00:23]} Qd7 {[%emt 0:02:06]} 28. Qe5 {[%emt 0:00:28]} Qd6 {[%emt 0:02:18]} 29. Qg7# {[%emt 0:00:09] Black got outplayed after the opening.   Weighted Error Value: White=0.06 (flawless) /Black=0.77.  Mistake:       	---       	Black=3      Inaccurate:     	---       	Black=1      OK:         	White=8     	Black=2      Best:        	White=2     	---} 1-0